bitfinex/quotes_BTCUSD_20240728
["timestamp","ask_amount","ask_price","bid_price","bid_amount"]
[1722174265436,0.09688585,68074.0,68073.0,0.67869992]
[1722174265638,0.07234603,68074.0,68073.0,0.67869992]
[1722174265844,0.11998762,68074.0,68073.0,0.67869992]
[1722174266061,0.22996515,68074.0,68073.0,0.67869992]
[1722174268987,0.07079183,68074.0,68073.0,0.67869992]
[1722174269155,0.18077467,68074.0,68073.0,0.67869992]
[1722174269356,0.22998105,68074.0,68073.0,0.67869992]
[1722174269551,0.22998105,68074.0,68073.0,0.60260932]
[1722174272012,0.22998105,68074.0,68073.0,0.68320932]
[1722174272310,0.22999055,68074.0,68073.0,0.68320932]
[1722174272886,0.23000913,68074.0,68073.0,0.68320932]
[1722174274647,0.11999492,68074.0,68073.0,0.68320932]
[1722174274854,0.22999905,68074.0,68073.0,0.78700849]
[1722174275530,0.07079183,68074.0,68073.0,0.78700849]
[1722174275690,0.23008764,68074.0,68073.0,0.78700849]
[1722174277567,0.23008764,68074.0,68073.0,0.68320932]
[1722174278760,0.23008764,68074.0,68073.0,0.74570932]
[1722174278956,0.23004242,68074.0,68073.0,0.74570932]
[1722174280754,0.23004242,68074.0,68073.0,0.68320932]
[1722174281628,0.23004242,68074.0,68073.0,0.60260932]
[1722174282224,0.23031258,68074.0,68073.0,0.60260932]
[1722174282600,0.23024042,68074.0,68073.0,0.60260932]
[1722174284500,0.22996573,68074.0,68073.0,0.60260932]
[1722174285494,0.22995927,68074.0,68073.0,0.60260932]
[1722174286281,0.12194663,68074.0,68073.0,0.60260932]
[1722174286495,0.18154663,68074.0,68073.0,0.60260932]
[1722174286701,0.18354663,68074.0,68073.0,0.60260932]
[1722174287586,0.18154663,68074.0,68073.0,0.60260932]
[1722174287741,0.18354663,68074.0,68073.0,0.60260932]
[1722174287945,0.18154663,68074.0,68073.0,0.60260932]
[1722174288308,0.18154663,68074.0,68073.0,0.13252732]
[1722174288309,0.18752286,68074.0,68073.0,0.13252732]
[1722174288607,0.13992226,68074.0,68073.0,0.01500732]
[1722174288834,0.18707487,68074.0,68073.0,0.13252732]
[1722174289743,0.31958213,68074.0,68073.0,0.36756832]
[1722174290438,0.3136059,68074.0,68073.0,0.36756832]
[1722174290638,0.2520059,68074.0,68073.0,0.42870939]
[1722174291411,0.25598213,68074.0,68073.0,0.42870939]
[1722174291634,0.2520059,68074.0,68073.0,0.66375039]
[1722174291840,0.12392067,68074.0,68073.0,0.66375039]
[1722174292039,0.12551417,68074.0,68073.0,0.66375039]
[1722174292416,0.07476806,68074.0,68073.0,0.66375039]
[1722174292621,0.12384639,68074.0,68073.0,0.66375039]
[1722174293043,0.11987016,68074.0,68073.0,0.66375039]
[1722174295026,0.07079183,68074.0,68073.0,0.66375039]
[1722174295231,0.11986901,68074.0,68073.0,0.66375039]
[1722174296063,0.11986901,68074.0,68073.0,0.94679139]
[1722174296493,0.22999099,68074.0,68073.0,1.08619139]
[1722174296647,0.07297761,68074.0,68073.0,1.08619139]
[1722174296874,0.1610799,68074.0,68073.0,1.08619139]
[1722174297451,0.07297761,68074.0,68073.0,1.08619139]
[1722174297813,0.07453181,68074.0,68073.0,1.08619139]
[1722174298741,0.07297761,68074.0,68073.0,1.08619139]
[1722174299064,0.07297761,68074.0,68073.0,1.08819139]
[1722174299065,0.07453181,68074.0,68073.0,1.08819139]
[1722174299214,0.11753675,68074.0,68073.0,1.33421516]
[1722174299420,0.06690537,68074.0,68073.0,1.33421516]
[1722174299827,0.06690537,68074.0,68073.0,1.56925616]
[1722174300027,0.0023942,68074.0,68073.0,1.56925616]
[1722174300226,0.00084,68074.0,68073.0,1.56925616]
[1722174301367,0.0023942,68074.0,68073.0,1.56925616]
[1722174301625,0.0023942,68074.0,68073.0,1.32323239]
[1722174301778,0.00084,68074.0,68073.0,1.56925616]
[1722174301978,0.00217697,68074.0,68073.0,1.74735616]
[1722174302214,0.00084,68074.0,68073.0,1.74735616]
[1722174302806,0.00084,68074.0,68073.0,1.73335616]
[1722174303009,0.02389634,68074.0,68073.0,1.96839716]
[1722174303163,0.02389634,68074.0,68073.0,1.96831384]
[1722174303384,0.00154887,68081.0,68080.0,1.35359977]
[1722174303625,0.0015542,68084.0,68083.0,0.29502377]
[1722174303838,0.0015542,68084.0,68083.0,0.78633377]
[1722174304077,1.0,68085.0,68084.0,0.64752777]
[1722174304248,1.0,68085.0,68084.0,1.25433377]
[1722174304469,1.0,68085.0,68084.0,1.48933677]
[1722174305251,1.0,68085.0,68084.0,1.48833677]
[1722174305451,1.0,68085.0,68084.0,1.63859634]
[1722174305614,1.0,68085.0,68084.0,1.64059634]
[1722174305840,1.0,68085.0,68084.0,1.65459634]
[1722174306019,1.001,68085.0,68084.0,1.66859634]
[1722174306403,1.001,68085.0,68084.0,1.66659634]
[1722174306944,1.001,68085.0,68084.0,1.66859634]
[1722174308139,0.001,68085.0,68084.0,1.66859634]
[1722174308743,0.001,68085.0,68084.0,1.66659634]
[1722174310520,0.001,68085.0,68084.0,1.66859634]
[1722174310881,0.001,68085.0,68084.0,1.66659634]
[1722174311311,0.001,68085.0,68084.0,1.66859634]
[1722174311476,0.02405361,68085.0,68084.0,1.66859634]
[1722174313614,0.02405361,68085.0,68084.0,1.67728768]
[1722174314676,0.02405361,68085.0,68084.0,1.43326391]
[1722174315205,0.02405361,68085.0,68084.0,1.67728768]
[1722174316524,0.001,68085.0,68084.0,2.06739068]
[1722174316729,0.00084,68087.0,68086.0,1.64540577]
[1722174316845,0.00084,68087.0,68086.0,1.79566534]
[1722174317055,0.00084,68087.0,68086.0,2.05366134]
[1722174317254,0.00126894,68099.0,68098.0,1.34932077]
[1722174317455,0.7,68100.0,68099.0,0.80155177]
[1722174317678,0.7,68100.0,68099.0,1.66820777]
[1722174317887,0.7,68100.0,68099.0,1.81846734]
[1722174318303,0.98028695,68101.0,68100.0,1.27144177]
[1722174318526,0.77058756,68101.0,68100.0,1.76818977]
[1722174318732,0.64668664,68101.0,68100.0,1.86043736]
[1722174318904,0.64668664,68101.0,68100.0,2.09538536]
[1722174319288,0.00084,68115.0,68114.0,1.74107377]
[1722174319488,0.00828,68125.0,68120.0,0.557418]
[1722174319689,0.00828,68125.0,68120.0,1.39419977]
[1722174319890,0.03132006,68121.0,68120.0,1.62707877]
[1722174320094,0.03132006,68121.0,68120.0,1.62907877]
[1722174320687,0.03132006,68121.0,68120.0,1.62707877]
[1722174320895,0.03132006,68121.0,68120.0,1.60607877]
[1722174321802,0.03132006,68121.0,68120.0,1.61516333]
[1722174322071,0.03132006,68121.0,68120.0,1.62916333]
[1722174322207,0.03132006,68121.0,68120.0,1.64316333]
[1722174322604,0.03132006,68121.0,68120.0,1.62916333]
[1722174322871,0.03132006,68121.0,68120.0,1.64316333]
[1722174323048,0.03132006,68121.0,68120.0,1.61516333]
[1722174323571,0.03132006,68121.0,68120.0,1.62916333]
[1722174323926,0.03132006,68121.0,68120.0,1.64316333]
[1722174324327,0.03132006,68121.0,68120.0,1.65716333]
[1722174325350,0.03132006,68121.0,68120.0,1.62916333]
[1722174325553,0.03132006,68121.0,68120.0,1.65216333]
[1722174325759,0.03132006,68121.0,68120.0,1.66616333]
[1722174326016,0.03132006,68121.0,68120.0,1.65216333]
[1722174326017,0.00828,68121.0,68120.0,1.65216333]
[1722174326214,0.00828,68121.0,68120.0,1.98374233]
[1722174326418,0.00828,68121.0,68120.0,2.03354233]
[1722174327979,0.00828,68121.0,68120.0,1.78951856]
[1722174328210,0.00828,68121.0,68120.0,1.83987067]
[1722174328405,0.00828,68121.0,68120.0,1.85387067]
[1722174328812,0.00828,68121.0,68120.0,2.09789444]
[1722174329245,0.03131889,68121.0,68120.0,2.09789444]
[1722174329419,0.00828,68121.0,68120.0,2.09789444]
[1722174329904,0.00828,68121.0,68120.0,1.85387067]
[1722174330015,0.00828,68121.0,68120.0,2.09789444]
[1722174331564,0.00828,68125.0,68124.0,1.74088077]
[1722174331782,0.00828,68125.0,68124.0,2.08551056]
[1722174332115,0.00828,68125.0,68124.0,2.32037556]
[1722174332818,0.00828,68125.0,68124.0,2.4346129]
[1722174333071,0.03131674,68125.0,68124.0,2.4486129]
[1722174333253,0.03131674,68125.0,68124.0,2.4346129]
[1722174333459,0.03131674,68125.0,68124.0,2.4206129]
[1722174333642,0.03131674,68125.0,68124.0,2.4346129]
[1722174333804,0.03131674,68125.0,68124.0,2.4206129]
[1722174334064,0.00828,68125.0,68124.0,2.4206129]
[1722174334265,0.00828,68125.0,68124.0,2.4346129]
[1722174334820,0.00828,68125.0,68124.0,2.4486129]
[1722174335045,0.00828,68125.0,68124.0,2.37348311]
[1722174335614,0.00828,68125.0,68124.0,2.35948311]
[1722174335791,0.00828,68125.0,68124.0,2.34548311]
[1722174336022,0.00828,68125.0,68124.0,2.05173288]
[1722174336193,0.00828,68125.0,68124.0,1.93758077]
[1722174336745,0.00828,68125.0,68124.0,1.95158077]
[1722174336966,0.00828,68125.0,68124.0,1.93758077]
[1722174337361,0.03131707,68125.0,68124.0,1.95158077]
[1722174337746,0.03131707,68125.0,68124.0,1.71671577]
[1722174337958,0.00828,68125.0,68124.0,1.72571577]
[1722174338169,0.00828,68125.0,68124.0,1.73971577]
[1722174338886,0.00828,68125.0,68124.0,1.72571577]
[1722174339074,0.00828,68125.0,68124.0,1.73971577]
[1722174340822,0.00828,68125.0,68124.0,1.97458077]
[1722174341131,0.03131653,68125.0,68124.0,1.97458077]
[1722174342017,0.03131653,68125.0,68124.0,2.02290466]
[1722174342472,0.03131653,68125.0,68124.0,2.07206974]
[1722174343194,0.03131653,68125.0,68124.0,1.82804597]
[1722174343413,0.03131653,68125.0,68124.0,2.07206974]
[1722174343611,0.03131653,68125.0,68124.0,1.82804597]
[1722174343822,0.03131653,68125.0,68124.0,2.07206974]
[1722174344014,0.03131653,68125.0,68124.0,1.82804597]
[1722174344364,0.03131653,68125.0,68124.0,2.02290466]
[1722174344571,0.03131653,68125.0,68124.0,1.97458077]
[1722174345361,0.00828,68125.0,68124.0,2.03688077]
[1722174345533,0.00828,68125.0,68124.0,2.20720497]
[1722174345688,0.00828,68125.0,68124.0,2.15888108]
[1722174346096,0.00828,68125.0,68124.0,2.20720497]
[1722174346315,0.00828,68125.0,68124.0,2.15888108]
[1722174347138,0.00828,68125.0,68124.0,2.25637005]
[1722174347516,0.00828,68125.0,68124.0,2.15888108]
[1722174348455,0.00828,68125.0,68124.0,2.21987699]
[1722174348658,0.03131632,68125.0,68124.0,2.21987699]
[1722174348959,0.00828,68125.0,68124.0,2.21987699]
[1722174349987,0.00828,68125.0,68124.0,2.09787668]
[1722174350190,0.00828,68125.0,68124.0,2.2198685]
[1722174350405,0.00828,68125.0,68124.0,2.15887259]
[1722174350754,0.00828,68125.0,68124.0,2.2198685]
[1722174351833,0.00828,68125.0,68124.0,2.37012807]
[1722174351834,1e-06,68125.0,68124.0,2.37012807]
[1722174352251,3.2e-07,68125.0,68124.0,2.37012807]
[1722174352504,0.00828,68130.0,68129.0,1.58568777]
[1722174352662,0.00828,68130.0,68129.0,2.12557959]
[1722174352856,0.00535,68131.0,68130.0,1.27108077]
[1722174353065,0.00535,68131.0,68130.0,2.06326259]
[1722174353342,0.00535,68131.0,68130.0,2.39558564]
[1722174353555,0.00535,68131.0,68130.0,2.15156187]
[1722174353838,0.00535,68131.0,68130.0,2.39558564]
[1722174354486,0.00535,68131.0,68130.0,2.16074064]
[1722174354699,0.00535,68131.0,68130.0,2.09724064]
[1722174355213,0.00535,68131.0,68130.0,2.06291675]
[1722174355914,0.00535,68131.0,68130.0,1.99975167]
[1722174356085,0.00535,68131.0,68130.0,1.7557279]
[1722174356295,0.00535,68131.0,68130.0,1.87777077]
[1722174356500,0.00535,68131.0,68130.0,1.98576664]
[1722174356689,0.00535,68131.0,68130.0,1.99976664]
[1722174357093,0.00535,68131.0,68130.0,1.75092164]
[1722174357328,0.00535,68131.0,68130.0,1.99976664]
[1722174357450,0.00535,68131.0,68130.0,2.01376664]
[1722174357650,0.00535,68131.0,68130.0,2.16228826]
[1722174358099,0.00535,68131.0,68130.0,2.14828826]
[1722174358347,1e-08,68136.0,68135.0,1.496648]
[1722174358495,0.0637,68150.0,68148.0,0.64419777]
[1722174358679,0.0637,68150.0,68148.0,0.87898077]
[1722174359354,0.0637,68150.0,68148.0,1.34854677]
[1722174359910,0.0637,68150.0,68148.0,1.106523]
[1722174360742,0.0637,68150.0,68148.0,1.36254677]
[1722174360946,0.0637,68150.0,68148.0,1.34854677]
[1722174361349,0.0637,68150.0,68148.0,1.134523]
[1722174361669,0.02503179,68149.0,68148.0,1.120523]
[1722174362003,0.002,68149.0,68148.0,1.120523]
[1722174362175,0.002,68149.0,68148.0,1.168523]
[1722174362397,0.002,68149.0,68148.0,1.134523]
[1722174362898,0.002,68149.0,68148.0,1.120523]
[1722174363036,0.1478,68149.0,68148.0,0.89974]
[1722174363467,0.1478,68149.0,68148.0,0.88574]
[1722174363725,0.1478,68149.0,68148.0,0.89974]
[1722174364143,0.1478,68149.0,68148.0,0.83574]
[1722174364461,0.19751836,68149.0,68148.0,0.352174]
[1722174364610,0.30222356,68149.0,68148.0,0.352174]
[1722174364789,0.25633439,68149.0,68148.0,0.600957]
[1722174364992,0.25633439,68149.0,68148.0,0.614957]
[1722174364993,0.17083287,68149.0,68148.0,0.614957]
[1722174365407,0.17083287,68149.0,68148.0,0.600957]
[1722174365807,0.17083287,68149.0,68148.0,0.614957]
[1722174366252,0.21804704,68149.0,68148.0,0.600957]
[1722174367079,0.17083287,68149.0,68148.0,0.600957]
[1722174367326,0.17083287,68149.0,68148.0,0.87174]
[1722174367779,0.17083287,68149.0,68148.0,1.134523]
[1722174367982,0.17083287,68149.0,68148.0,1.120523]
[1722174368401,0.17083287,68149.0,68148.0,1.134523]
[1722174368630,0.17083287,68149.0,68148.0,1.120523]
[1722174369473,0.17083287,68149.0,68148.0,1.134523]
[1722174371043,0.17083287,68149.0,68148.0,0.88574]
[1722174371363,0.17083287,68149.0,68148.0,0.89974]
[1722174375118,0.1478,68149.0,68148.0,0.89974]
[1722174378050,0.002,68149.0,68148.0,0.89974]
[1722174378490,0.02503184,68149.0,68148.0,0.89974]
[1722174378849,0.002,68149.0,68148.0,0.89974]
[1722174379048,0.002,68149.0,68148.0,1.14176377]
[1722174379334,0.002,68149.0,68148.0,0.89974]
[1722174379735,0.002,68149.0,68148.0,1.53134677]
[1722174379936,0.002,68149.0,68148.0,1.31956377]
[1722174380134,0.002,68149.0,68148.0,1.32156377]
[1722174380341,0.002,68149.0,68148.0,1.55434677]
[1722174382180,0.02503125,68149.0,68148.0,1.55434677]
[1722174382388,0.002,68149.0,68148.0,1.55434677]
[1722174382761,0.002,68149.0,68148.0,1.55634677]
[1722174383455,0.002,68149.0,68148.0,1.312323]
[1722174383941,0.002,68149.0,68148.0,1.55634677]
[1722174384155,0.002,68149.0,68148.0,1.69364677]
[1722174384536,0.002,68149.0,68148.0,1.449623]
[1722174384732,0.002,68149.0,68148.0,1.57158547]
[1722174385749,0.02502985,68149.0,68148.0,1.69364677]
[1722174386003,0.02502985,68149.0,68148.0,1.81560847]
[1722174386166,0.02502985,68149.0,68148.0,1.69364677]
[1722174386573,0.02502985,68149.0,68148.0,1.81560782]
[1722174387249,0.02502985,68149.0,68148.0,1.69364677]
[1722174387451,0.02502985,68149.0,68148.0,1.81560782]
[1722174387651,0.02502985,68149.0,68148.0,1.63114677]
[1722174387853,0.02502985,68149.0,68148.0,1.312323]
[1722174388248,0.08952985,68149.0,68148.0,1.312323]
[1722174388945,0.0665,68149.0,68148.0,1.312323]
[1722174390366,0.0665,68149.0,68148.0,0.614957]
[1722174390774,0.1425,68149.0,68148.0,0.614957]
[1722174391127,0.1425,68149.0,68148.0,0.664957]
[1722174391451,0.1425,68149.0,68148.0,0.89974]
[1722174391730,0.14334,68149.0,68148.0,0.89974]
[1722174392087,0.16637147,68149.0,68148.0,0.89974]
[1722174394181,0.16637147,68149.0,68148.0,1.14176377]
[1722174394413,0.09037147,68149.0,68148.0,0.89974]
[1722174395387,0.02587147,68149.0,68148.0,0.89974]
[1722174396006,0.02587147,68149.0,68148.0,1.14176377]
[1722174398079,0.00284,68149.0,68148.0,1.14176377]
[1722174399236,0.00284,68149.0,68148.0,0.89974]
[1722174399579,0.00284,68149.0,68148.0,1.37654677]
[1722174400192,0.00284,68149.0,68148.0,1.157523]
[1722174400395,0.00284,68149.0,68148.0,1.55434677]
[1722174400645,0.00284,68149.0,68148.0,1.61484677]
[1722174400840,0.00284,68149.0,68148.0,1.69164677]
[1722174401237,0.00284,68149.0,68148.0,1.92842977]
[1722174401591,0.02586981,68149.0,68148.0,1.92842977]
[1722174401805,0.02586981,68149.0,68148.0,2.15039285]
[1722174401806,0.00284,68149.0,68148.0,2.15039285]
[1722174402033,0.00284,68149.0,68148.0,2.19920131]
[1722174402612,0.00284,68149.0,68148.0,2.18520131]
[1722174402926,0.00284,68149.0,68148.0,1.89236908]
[1722174403130,0.00284,68149.0,68148.0,1.90636908]
[1722174403515,0.00284,68149.0,68148.0,1.89236908]
[1722174403753,0.00284,68149.0,68148.0,1.87836908]
[1722174403945,0.00284,68149.0,68148.0,1.87835518]
[1722174404159,0.00284,68149.0,68148.0,2.13637895]
[1722174404363,0.00284,68149.0,68148.0,1.87835518]
[1722174404635,0.00284,68149.0,68148.0,1.89235518]
[1722174404863,0.02586908,68149.0,68148.0,1.89235518]
[1722174405073,0.02586908,68149.0,68148.0,2.12237895]
[1722174405445,0.02586908,68149.0,68148.0,2.15037895]
[1722174405848,0.02586908,68149.0,68148.0,2.13637895]
[1722174406061,0.02586908,68149.0,68148.0,1.68429595]
[1722174406251,0.00284,68149.0,68148.0,1.68629595]
[1722174406662,0.00284,68149.0,68148.0,1.70029595]
[1722174407004,0.00284,68149.0,68148.0,1.57834677]
[1722174407135,0.00284,68149.0,68148.0,1.49954677]
[1722174407928,0.00284,68149.0,68148.0,1.48554677]
[1722174408362,0.00284,68149.0,68148.0,1.243523]
[1722174408602,0.00284,68149.0,68148.0,1.220523]
[1722174408603,0.14614,68149.0,68148.0,1.220523]
[1722174408764,0.14614,68149.0,68148.0,1.234523]
[1722174409164,0.14614,68149.0,68148.0,1.220523]
[1722174409589,0.14614,68149.0,68148.0,1.234523]
[1722174410119,0.14614,68149.0,68148.0,1.220523]
[1722174410405,0.14614,68149.0,68148.0,1.206523]
[1722174410621,0.14614,68149.0,68148.0,1.220523]
[1722174410748,0.14614,68149.0,68148.0,1.234523]
[1722174410951,0.14614,68149.0,68148.0,1.220523]
[1722174411364,0.14614,68149.0,68148.0,1.234523]
[1722174415580,0.16916838,68149.0,68148.0,1.234523]
[1722174415780,0.14614,68149.0,68148.0,1.234523]
[1722174418751,0.16916835,68149.0,68148.0,1.234523]
[1722174419513,0.14614,68149.0,68148.0,1.234523]
[1722174421345,0.14614,68149.0,68148.0,0.664957]
[1722174421553,0.14614,68149.0,68148.0,0.89974]
[1722174422394,0.16916895,68149.0,68148.0,0.89974]
[1722174422595,0.08726895,68149.0,68148.0,0.89974]
[1722174422756,0.08726895,68149.0,68148.0,1.14176377]
[1722174422957,0.08726895,68149.0,68148.0,0.89974]
[1722174423186,0.02586895,68149.0,68148.0,0.89974]
[1722174423839,0.00284,68149.0,68148.0,0.89974]
[1722174426797,0.02586932,68149.0,68148.0,0.89974]
[1722174429886,0.00284,68149.0,68148.0,0.89974]
[1722174432914,0.00284,68149.0,68148.0,0.145391]
[1722174432915,0.14704,68149.0,68148.0,0.145391]
[1722174433116,0.39835849,68149.0,68148.0,0.145391]
[1722174433364,0.28831106,68149.0,68148.0,0.380174]
[1722174433539,0.28831106,68149.0,68148.0,0.614957]
[1722174433757,0.39830648,68149.0,68148.0,0.614957]
[1722174434195,0.39830648,68149.0,68148.0,0.84974]
[1722174434196,0.28382431,68149.0,68148.0,0.84974]
[1722174434309,0.21782366,68149.0,68148.0,0.84974]
[1722174434514,0.16807093,68149.0,68148.0,0.84974]
[1722174435312,0.02587093,68149.0,68148.0,0.84974]
[1722174438154,0.00284,68149.0,68148.0,0.84974]
[1722174440154,0.05192005,68149.0,68148.0,0.84974]
[1722174440366,0.11812005,68149.0,68148.0,0.84974]
[1722174440570,0.19612005,68149.0,68148.0,0.84974]
[1722174440775,0.24012328,68149.0,68148.0,0.84974]
[1722174440969,0.23812328,68149.0,68148.0,0.84974]
[1722174441534,0.26115393,68149.0,68148.0,0.84974]
[1722174441730,0.14504,68149.0,68148.0,0.84974]
[1722174441934,0.24037536,68149.0,68148.0,0.614957]
[1722174442162,0.14704,68149.0,68148.0,0.614957]
[1722174442494,0.24037544,68149.0,68148.0,0.614957]
[1722174443286,0.2639962,68149.0,68148.0,0.614957]
[1722174443503,0.24151157,68149.0,68148.0,0.380174]
[1722174443712,0.24151157,68149.0,68148.0,0.028]
[1722174443713,0.26514641,68149.0,68148.0,0.028]
[1722174443910,0.27112264,68149.0,68148.0,0.028]
[1722174444098,0.26998317,68149.0,68148.0,0.028]
[1722174444235,0.62370537,68149.0,68148.0,0.028]
[1722174444435,0.62215117,68149.0,68148.0,0.028]
[1722174444678,0.6451839,68149.0,68148.0,0.028]
[1722174444866,0.59584384,68149.0,68148.0,0.028]
[1722174445066,0.38649072,68149.0,68148.0,0.014]
[1722174445490,0.62126972,68149.0,68148.0,0.028]
[1722174446082,0.62126972,68149.0,68148.0,0.014]
[1722174446307,0.1429,68143.0,68142.0,0.117401]
[1722174446492,0.25898549,68143.0,68142.0,0.117401]
[1722174446693,0.30294732,68143.0,68142.0,0.117401]
[1722174446930,0.30294732,68143.0,68139.0,0.235737]
[1722174446931,0.14887623,68140.0,68139.0,0.000924]
[1722174447095,0.38236672,68140.0,68139.0,0.000924]
[1722174447298,0.38392092,68140.0,68139.0,0.000924]
[1722174447551,0.47030326,68140.0,68139.0,0.000924]
[1722174447753,0.38236672,68140.0,68139.0,0.000924]
[1722174448088,0.68435168,68140.0,68139.0,0.000924]
[1722174448271,0.61688244,68140.0,68139.0,0.000924]
[1722174448481,1.16779985,68140.0,68139.0,0.000924]
[1722174448691,1.16780076,68140.0,68139.0,0.000924]
[1722174448918,0.93299076,68140.0,68139.0,0.000924]
[1722174449719,0.95602915,68140.0,68139.0,0.000924]
[1722174450027,0.92488126,68140.0,68139.0,0.000924]
[1722174450234,0.84358294,68140.0,68139.0,0.000924]
[1722174450444,0.61032714,68140.0,68139.0,0.000924]
[1722174450668,0.61032714,68140.0,68139.0,0.006924]
[1722174450880,0.84358294,68140.0,68139.0,0.006924]
[1722174451067,0.79541861,68140.0,68139.0,0.006924]
[1722174451273,0.84427597,68140.0,68139.0,0.006924]
[1722174451674,0.84427572,68140.0,68139.0,0.006924]
[1722174452277,0.84427572,68140.0,68139.0,0.020924]
[1722174452696,0.86731307,68140.0,68139.0,0.006924]
[1722174453223,0.84427572,68140.0,68139.0,0.000924]
[1722174453764,0.84427572,68140.0,68139.0,0.006924]
[1722174453947,0.36694236,68140.0,68139.0,0.006924]
[1722174454204,0.37620992,68140.0,68139.0,0.006924]
[1722174454484,0.46219563,68140.0,68139.0,0.000924]
[1722174454686,0.34479063,68140.0,68139.0,0.000924]
[1722174454901,0.25703497,68140.0,68139.0,0.000924]
[1722174455130,0.2578928,68140.0,68139.0,0.000924]
[1722174455330,0.3009065,68140.0,68139.0,0.118331]
[1722174455529,0.3009065,68140.0,68139.0,0.000924]
[1722174455827,0.37543997,68140.0,68139.0,0.006924]
[1722174456063,0.41930672,68140.0,68139.0,0.006924]
[1722174456415,0.721043,68140.0,68139.0,0.006924]
[1722174456706,0.86809734,68140.0,68139.0,0.006924]
[1722174457014,0.86809734,68140.0,68139.0,0.013924]
[1722174457213,1.10290734,68140.0,68139.0,0.013924]
[1722174457416,1.16177352,68140.0,68139.0,0.013924]
[1722174457616,1.02922861,68140.0,68139.0,0.013924]
[1722174457815,1.16093086,68140.0,68139.0,0.007924]
[1722174458016,1.16093086,68140.0,68139.0,0.000924]
[1722174458258,1.16093086,68140.0,68139.0,0.007924]
[1722174458582,1.16093086,68140.0,68139.0,0.014924]
[1722174458780,1.54600043,68140.0,68139.0,0.014924]
[1722174459014,1.69600043,68140.0,68139.0,0.014924]
[1722174459215,1.69600043,68140.0,68139.0,0.007924]
[1722174459615,1.69600043,68140.0,68139.0,0.013924]
[1722174460076,1.55471422,68140.0,68139.0,0.013924]
[1722174460886,1.37480231,68140.0,68139.0,0.006924]
[1722174461103,1.55352746,68140.0,68139.0,0.006924]
[1722174461307,1.37401197,68140.0,68139.0,0.006924]
[1722174461619,1.55381161,68140.0,68139.0,0.007924]
[1722174461774,1.50536581,68140.0,68139.0,0.007924]
[1722174461980,1.63517623,68140.0,68139.0,0.000924]
[1722174462180,1.50381161,68140.0,68139.0,0.000924]
[1722174463283,1.50336581,68140.0,68139.0,0.000924]
[1722174463491,1.50381161,68140.0,68139.0,0.000924]
[1722174465835,1.26900161,68140.0,68139.0,0.000924]
[1722174466212,1.37842946,68140.0,68139.0,0.000924]
[1722174466424,1.4014715,68140.0,68139.0,0.000924]
[1722174466633,1.37842946,68140.0,68139.0,0.000924]
[1722174467079,1.27508366,68140.0,68139.0,0.000924]
[1722174467505,1.18757033,68140.0,68139.0,0.000924]
[1722174467615,1.35639966,68140.0,68139.0,0.000924]
[1722174467815,1.26886148,68140.0,68139.0,0.000924]
[1722174468107,1.35639639,68140.0,68139.0,0.000924]
[1722174468437,1.2531215,68140.0,68139.0,0.000924]
[1722174468638,1.3119745,68140.0,68139.0,0.000924]
[1722174469052,1.32772117,68140.0,68139.0,0.000924]
[1722174469267,1.41325616,68140.0,68139.0,0.000924]
[1722174469464,1.45818406,68140.0,68139.0,0.000924]
[1722174469981,1.46018406,68140.0,68139.0,0.000924]
[1722174470310,1.32772117,68140.0,68139.0,0.000924]
[1722174470485,1.19805497,68140.0,68139.0,0.000924]
[1722174470684,1.43780602,68140.0,68139.0,0.000924]
[1722174470916,1.32838719,68140.0,68139.0,0.000924]
[1722174471116,1.2797663,68140.0,68139.0,0.000924]
[1722174471356,1.32837402,68140.0,68139.0,0.000924]
[1722174472074,1.09356402,68140.0,68139.0,0.000924]
[1722174472297,1.17211455,68140.0,68139.0,0.000924]
[1722174472751,1.15023874,68140.0,68139.0,0.000924]
[1722174472948,1.150049,68140.0,68139.0,0.000924]
[1722174473124,1.31921092,68140.0,68139.0,0.000924]
[1722174473531,0.91639751,68140.0,68139.0,0.000924]
[1722174473736,0.89541861,68140.0,68139.0,0.000924]
[1722174473984,0.9437613,68140.0,68139.0,0.000924]
[1722174474995,1.02552746,68140.0,68139.0,0.000924]
[1722174475346,0.9437613,68140.0,68139.0,0.000924]
[1722174475557,0.71183041,68140.0,68139.0,0.000924]
[1722174475759,0.41502041,68140.0,68139.0,0.000924]
[1722174476306,0.64983041,68140.0,68139.0,0.000924]
[1722174476679,0.41502041,68140.0,68139.0,0.000924]
[1722174476883,0.64983041,68140.0,68139.0,0.000924]
[1722174477081,0.32110188,68140.0,68139.0,0.000924]
[1722174477352,0.22110224,68140.0,68139.0,0.118331]
[1722174477478,0.13926858,68140.0,68139.0,0.118331]
[1722174478353,0.13926858,68140.0,68139.0,0.122331]
[1722174478866,0.13926858,68140.0,68139.0,0.130331]
[1722174479081,0.13926858,68140.0,68139.0,0.126331]
[1722174479730,0.13926858,68140.0,68139.0,0.135331]
[1722174480292,0.09053202,68140.0,68139.0,0.126331]
[1722174480459,0.13916484,68140.0,68139.0,0.361145]
[1722174480807,0.1391898,68140.0,68139.0,0.361145]
[1722174481369,0.1371898,68140.0,68139.0,0.361145]
[1722174482170,0.1371898,68140.0,68139.0,0.126331]
[1722174482368,0.1371898,68140.0,68139.0,0.135331]
[1722174482578,0.13734226,68140.0,68139.0,0.370145]
[1722174482806,0.13734226,68140.0,68139.0,0.671159]
[1722174482977,0.13934226,68140.0,68139.0,0.201531]
[1722174483325,0.13734226,68140.0,68139.0,0.370145]
[1722174483459,0.13934226,68140.0,68139.0,0.370145]
[1722174483660,0.13734226,68140.0,68139.0,0.370145]
[1722174484149,0.13934226,68140.0,68139.0,0.017924]
[1722174484342,0.32248955,68140.0,68139.0,0.017924]
[1722174484549,0.31824726,68140.0,68139.0,0.017924]
[1722174484925,0.40590365,68140.0,68139.0,0.017924]
[1722174485686,0.31824726,68140.0,68139.0,0.017924]
[1722174485797,0.61488501,68140.0,68139.0,0.017924]
[1722174485997,0.66242691,68140.0,68139.0,0.017924]
[1722174486685,0.55276615,68140.0,68139.0,0.017924]
[1722174488219,0.78757615,68140.0,68139.0,0.017924]
[1722174488421,0.55276615,68140.0,68139.0,0.017924]
[1722174488945,0.55247645,68140.0,68139.0,0.017924]
[1722174489585,0.55047645,68140.0,68139.0,0.017924]
[1722174489804,0.55383177,68140.0,68139.0,0.017924]
[1722174489983,0.55247645,68140.0,68139.0,0.017924]